bitfinex-derivatives/quotes_BTCF0:USTF0_20250320
["timestamp","ask_amount","ask_price","bid_price","bid_amount"]
[1742464866825,0.2954595,85945.0,85944.0,0.11651536]
[1742464867522,0.17912,85945.0,85944.0,0.11651536]
[1742464867920,0.17928,85945.0,85944.0,0.11651536]
[1742464868119,0.17928,85945.0,85944.0,0.18211536]
[1742464868318,0.2966195,85945.0,85944.0,0.18211536]
[1742464868514,0.2966195,85945.0,85944.0,0.00017456]
[1742464868916,0.2976195,85945.0,85944.0,0.11651536]
[1742464870936,0.2966195,85945.0,85944.0,0.11651536]
[1742464871129,0.2976195,85945.0,85944.0,0.11651536]
[1742464871728,0.2966195,85945.0,85944.0,0.11651536]
[1742464872629,0.2976195,85945.0,85944.0,0.11651536]
[1742464874229,0.2966195,85945.0,85944.0,0.11651536]
[1742464874433,0.2976195,85945.0,85944.0,0.17681536]
[1742464875136,0.2966195,85945.0,85944.0,0.17681536]
[1742464877336,0.2956195,85945.0,85944.0,0.17681536]
[1742464877639,0.2966195,85945.0,85944.0,0.17681536]
[1742464878136,0.2976195,85945.0,85944.0,0.17681536]
[1742464878533,0.2966195,85945.0,85944.0,0.17681536]
[1742464878838,0.2976195,85945.0,85944.0,0.17681536]
[1742464879038,0.2976195,85945.0,85944.0,0.06047456]
[1742464879244,0.2976195,85945.0,85944.0,0.17681536]
[1742464879539,0.2966195,85945.0,85944.0,0.17681536]
[1742464880035,0.2966195,85945.0,85944.0,0.00017456]
[1742464880332,0.2956195,85945.0,85944.0,0.11651536]
[1742464880536,0.2966195,85945.0,85944.0,0.11651536]
[1742464880739,0.2966195,85945.0,85944.0,0.14961536]
[1742464881538,0.2976195,85945.0,85944.0,0.18281536]
[1742464887536,0.2650195,85945.0,85944.0,0.19438415]
[1742464887739,0.0348,85945.0,85944.0,0.19438415]
[1742464887947,0.002,85945.0,85944.0,0.19438415]
[1742464889947,0.002,85945.0,85944.0,0.44438415]
[1742464890442,0.47541844,85955.0,85954.0,0.1163273]
[1742464890939,0.11461844,85955.0,85954.0,0.1179273]
[1742464891443,0.11461844,85955.0,85954.0,0.1816273]
[1742464891641,0.11861844,85955.0,85954.0,0.1816273]
[1742464891941,0.12261844,85955.0,85954.0,0.1816273]
[1742464895435,0.23894434,85955.0,85954.0,0.1816273]
[1742464896150,0.12261844,85955.0,85954.0,0.1816273]
[1742464896340,0.15521844,85955.0,85954.0,0.1816273]
[1742464896846,0.0406,85955.0,85954.0,0.1816273]
[1742464897247,0.1569259,85955.0,85954.0,0.1816273]
[1742464897447,0.1895259,85955.0,85954.0,0.1816273]
[1742464899737,0.19898905,85955.0,85954.0,0.1816273]
[1742464903848,0.1895259,85955.0,85954.0,0.1816273]
[1742464912458,0.1895259,85955.0,85954.0,0.1800273]
[1742464915154,0.1895259,85955.0,85954.0,0.1163273]
[1742464915560,0.1895259,85955.0,85954.0,0.1484273]
[1742464915749,0.19901159,85955.0,85954.0,0.1484273]
[1742464915944,0.19901159,85955.0,85954.0,0.1798273]
[1742464918359,0.20988925,85955.0,85954.0,0.1798273]
[1742464920259,0.1163273,85954.0,85953.0,4e-05]
[1742464920451,0.12720496,85954.0,85953.0,0.1163686]
[1742464920764,0.18980496,85954.0,85953.0,0.1163686]
[1742464921259,0.04267766,85954.0,85953.0,0.4771286]
[1742464921449,0.02036335,85954.0,85953.0,0.5387286]
[1742464921655,0.02036335,85954.0,85953.0,0.5699286]
[1742464921854,0.02336335,85954.0,85953.0,2.0699286]
[1742464922262,0.02636335,85954.0,85953.0,0.5699286]
[1742464923478,0.14269065,85954.0,85953.0,0.5699286]
[1742464923658,0.02636335,85954.0,85953.0,0.5699286]
[1742464924057,0.03588941,85954.0,85953.0,0.5699286]
[1742464924961,0.0358895,85954.0,85953.0,0.5699286]
[1742464925164,1e-08,85954.0,85953.0,0.5699286]
[1742464925462,0.11649236,85961.0,85960.0,0.1163192]
[1742464925668,0.11649236,85961.0,85960.0,0.4771192]
[1742464926358,0.11649236,85961.0,85960.0,0.5396192]
[1742464927871,0.2442779,85967.0,85966.0,0.116311]
[1742464928067,0.0806454,85973.0,85967.0,0.1163097]
[1742464928268,0.0806454,85973.0,85972.0,0.1163029]
[1742464928269,0.05214786,85973.0,85972.0,0.1163029]
[1742464928471,0.27884286,85975.0,85974.0,0.1163002]
[1742464928664,0.42922209,85978.0,85977.0,0.0581475]
[1742464929071,0.42922209,85978.0,85977.0,0.0626]
[1742464929262,0.42922209,85978.0,85977.0,0.1788962]
[1742464929462,0.42922209,85978.0,85977.0,0.14253098]
[1742464930066,0.43422209,85978.0,85977.0,0.14253098]
[1742464930266,0.43422209,85978.0,85974.0,0.4782202]
[1742464930267,0.1162989,85975.0,85974.0,0.36192]
[1742464930464,0.1162989,85975.0,85974.0,0.3608]
[1742464931462,0.1163002,85974.0,85973.0,4e-05]
[1742464931668,0.1470002,85974.0,85973.0,4e-05]
[1742464932168,0.1784002,85974.0,85973.0,4e-05]
[1742464932767,0.1844002,85974.0,85973.0,4e-05]
[1742464932967,0.1894002,85974.0,85973.0,4e-05]
[1742464934667,0.1894002,85974.0,85969.0,0.00017456]
[1742464934862,0.1163056,85970.0,85969.0,0.00017456]
[1742464935669,0.1826056,85970.0,85969.0,0.00017456]
[1742464935975,0.1826056,85970.0,85969.0,0.11648156]
[1742464936177,0.1876056,85970.0,85969.0,0.00017456]
[1742464936376,0.1876056,85970.0,85969.0,0.11648156]
[1742464937582,0.19725067,85970.0,85969.0,0.11648156]
[1742464938379,0.20325067,85970.0,85969.0,0.11648156]
[1742464938677,0.31617067,85970.0,85969.0,0.11648156]
[1742464939079,0.3065256,85970.0,85969.0,0.11648156]
[1742464939876,0.4065256,85970.0,85969.0,0.11648156]
[1742464940876,0.4065256,85970.0,85969.0,0.17968156]
[1742464943582,0.2936056,85970.0,85969.0,0.17968156]
[1742464943782,0.011,85970.0,85969.0,0.54048156]
[1742464943983,0.01078559,85970.0,85969.0,0.54048156]
[1742464944172,0.1465885,85983.0,85979.0,0.1162935]
[1742464944373,0.1162908,85981.0,85979.0,0.1162935]
[1742464944682,0.0303,85983.0,85979.0,0.1162935]
[1742464944683,0.1465881,85983.0,85979.0,0.1162935]
[1742464944880,0.31292589,85980.0,85979.0,0.1162935]
[1742464945076,0.31292589,85980.0,85979.0,0.19008904]
[1742464945771,0.43321799,85980.0,85979.0,0.19008904]
[1742464945993,0.43921799,85980.0,85979.0,0.19008904]
[1742464946483,0.53921799,85980.0,85979.0,0.1781935]
[1742464946682,0.35502589,85980.0,85979.0,0.19013686]
[1742464947285,0.47131799,85980.0,85979.0,0.19013686]
[1742464947886,0.0421,85980.0,85979.0,0.19013686]
[1742464948280,0.1583921,85980.0,85979.0,0.19013686]
[1742464949576,0.0421,85980.0,85979.0,0.19013686]
[1742464949776,0.01,85980.0,85979.0,0.19013686]
[1742464950583,0.0416,85980.0,85979.0,0.19013686]
[1742464952287,0.01,85980.0,85979.0,0.19013686]
[1742464955591,0.01,85980.0,85979.0,0.45013686]
[1742464957389,0.01,85980.0,85979.0,0.56309686]
[1742464958991,4e-05,85984.0,85983.0,0.1162881]
[1742464959191,4e-05,85984.0,85983.0,0.4770881]
[1742464959894,4e-05,85984.0,85983.0,0.5390881]
[1742464960091,0.00017456,85986.0,85985.0,0.1162853]
[1742464960693,0.00021456,85986.0,85985.0,0.1162853]
[1742464960899,0.116271,85996.0,85992.0,0.0581376]
[1742464961198,0.0308,85995.0,85993.0,0.1524366]
[1742464961497,0.0308,85995.0,85994.0,0.4770732]
[1742464961887,0.0308,85995.0,85994.0,0.5072732]
[1742464962083,0.03084,85995.0,85994.0,0.5072732]
[1742464962289,0.03084,85995.0,85994.0,0.5385732]
[1742464962495,0.06114,85995.0,85994.0,0.5385732]
[1742464962688,0.1774118,85995.0,85994.0,0.5385732]
[1742464962894,0.2774118,85995.0,85994.0,0.5385732]
[1742464964096,0.1774118,85995.0,85994.0,0.5385732]
[1742464964400,0.06114,85995.0,85994.0,0.5385732]
[1742464964692,0.2774118,85995.0,85994.0,0.5385732]
[1742464964898,0.2773718,85995.0,85994.0,0.5385732]
[1742464965092,0.0611,85995.0,85994.0,0.5385732]
[1742464965290,0.1773718,85995.0,85994.0,0.5385732]
[1742464965696,0.2773718,85995.0,85994.0,0.5385732]
[1742464965885,0.1773718,85995.0,85994.0,0.5385732]
[1742464966792,0.2773718,85995.0,85994.0,0.1777732]
[1742464966993,0.2091718,85995.0,85994.0,0.1162732]
[1742464967199,0.1773718,85995.0,85994.0,0.1162732]
[1742464967791,0.0611,85995.0,85994.0,0.1162732]
[1742464967999,0.0611,85995.0,85994.0,0.1481732]
[1742464968299,0.0611,85995.0,85994.0,0.1804732]
[1742464968891,0.0623,85995.0,85994.0,0.1804732]
[1742464969092,0.0623,85995.0,85994.0,0.2136732]
[1742464969587,0.0623,85995.0,85994.0,0.2141932]
[1742464970208,0.1785718,85995.0,85994.0,0.2141932]
[1742464970417,0.1785718,85995.0,85994.0,0.1167932]
[1742464972491,0.2785718,85995.0,85994.0,0.1167932]
[1742464972691,0.2773718,85995.0,85994.0,0.1167932]
[1742464973298,0.2773718,85995.0,85994.0,0.1162732]
[1742464973699,0.2785718,85995.0,85994.0,0.1162732]
[1742464974109,0.2785718,85995.0,85994.0,0.1167932]
[1742464975403,0.2103718,85995.0,85994.0,0.1167932]
[1742464975603,0.3915318,85995.0,85994.0,0.1167932]
[1742464978209,0.3903318,85995.0,85994.0,0.1167932]
[1742464979103,0.3903318,85995.0,85994.0,0.1162732]
[1742464979505,0.3915318,85995.0,85994.0,0.1162732]
[1742464979913,0.1162745,85993.0,85992.0,0.0581373]
[1742464980306,0.2162745,85993.0,85992.0,0.0581373]
[1742464980508,0.1,85993.0,85986.0,0.01187296]
[1742464980705,0.1162853,85985.0,85984.0,0.1491867]
[1742464980903,0.2162853,85985.0,85984.0,0.1491867]
[1742464981103,0.1162853,85985.0,85984.0,0.1162867]
[1742464981310,0.2162853,85985.0,85984.0,0.1162867]
[1742464981514,0.2484853,85985.0,85984.0,0.1162867]
[1742464981706,0.2811853,85985.0,85984.0,0.1162867]
[1742464981902,0.2811853,85985.0,85984.0,0.1491867]
[1742464984207,0.2811853,85985.0,85984.0,0.1815867]
[1742464984407,0.2823853,85985.0,85984.0,0.1815867]
[1742464984916,0.2823853,85985.0,85984.0,0.1821067]
[1742464985304,0.2823853,85985.0,85984.0,0.1497067]
[1742464985510,0.2823853,85985.0,85984.0,0.1168067]
[1742464986106,0.2823853,85985.0,85984.0,0.1485067]
[1742464986617,0.2823853,85985.0,85984.0,0.1168067]
[1742464988110,0.2823853,85985.0,85984.0,0.1485067]
[1742464988515,0.2823853,85985.0,85984.0,0.1807067]
[1742464988710,0.2811853,85985.0,85984.0,0.1485067]
[1742464989016,0.2811853,85985.0,85984.0,0.1479867]
[1742464990016,0.2823853,85985.0,85984.0,0.1479867]
[1742464990218,0.2823853,85985.0,85984.0,0.1485067]
[1742464991506,0.2823853,85985.0,85984.0,0.1786067]
[1742464992712,0.2811853,85985.0,85984.0,0.1786067]
[1742464992912,0.2129853,85985.0,85984.0,0.1786067]
[1742464993214,0.2811853,85985.0,85984.0,0.00052]
[1742464994515,0.1162867,85984.0,85983.0,0.362]
[1742464994716,0.1162975,85976.0,85974.0,0.116299]
[1742464994904,0.3292975,85976.0,85975.0,0.5086989]
[1742464995110,0.3292975,85976.0,85975.0,0.5201748]
[1742464995311,0.3292975,85976.0,85975.0,0.4038759]
[1742464995510,0.3935975,85976.0,85975.0,0.4038759]
[1742464995716,0.3935975,85976.0,85975.0,0.3924]
[1742464996519,0.3935975,85976.0,85975.0,0.3608]
[1742464997115,0.1163016,85973.0,85972.0,4e-05]
[1742464997319,0.0581521,85971.0,85954.0,1.8608]
[1742464997506,0.2163151,85963.0,85957.0,0.1491226]
[1742464997706,0.3292751,85963.0,85961.0,4e-05]
[1742464997916,0.3292751,85963.0,85959.0,4e-05]
[1742464997917,0.1163165,85962.0,85959.0,4e-05]
[1742464998111,0.1163232,85957.0,85948.0,0.0328]
[1742464998312,0.0581652,85952.0,85948.0,0.0328]
[1742464998507,0.1163341,85949.0,85948.0,0.03297445]
[1742464998723,0.1481341,85949.0,85948.0,0.14930985]
[1742464999022,0.1163341,85949.0,85948.0,0.14930985]
[1742464999420,0.1481341,85949.0,85948.0,0.14930985]
[1742464999622,0.1163341,85949.0,85948.0,0.14930985]
[1742464999813,0.1163341,85949.0,85948.0,0.03297445]
[1742464999814,0.2163341,85949.0,85948.0,0.03297445]
[1742465000117,0.2163341,85949.0,85948.0,0.14930985]
[1742465000307,0.113,85951.0,85950.0,0.1163327]
[1742465001316,0.1163341,85949.0,85948.0,0.17970815]
[1742465001910,0.2792341,85949.0,85948.0,0.17970815]
[1742465002113,0.2792341,85949.0,85948.0,0.06337445]
[1742465003024,0.2792341,85949.0,85948.0,0.17970985]
[1742465003417,0.1792341,85949.0,85948.0,0.17970985]
[1742465003618,0.2792341,85949.0,85948.0,0.06337445]
[1742465004223,0.2792341,85949.0,85948.0,0.00017445]
[1742465005313,0.2792341,85949.0,85948.0,0.00069445]
[1742465005314,0.2110341,85949.0,85948.0,0.00069445]
[1742465005722,0.2792341,85949.0,85948.0,0.00069445]
[1742465005924,0.2110341,85949.0,85948.0,0.00069445]
[1742465007015,0.22063322,85949.0,85948.0,0.00069445]
[1742465007215,0.22063322,85949.0,85944.0,4e-05]
[1742465007216,0.1163395,85945.0,85944.0,4e-05]
[1742465007428,0.34986019,85945.0,85944.0,4e-05]
[1742465007625,0.24986019,85945.0,85944.0,4e-05]
[1742465007819,0.34986019,85945.0,85944.0,4e-05]
[1742465008020,0.1163462,85940.0,85939.0,0.0313]
[1742465008219,0.22594532,85940.0,85939.0,0.0313]
[1742465008823,0.31924532,85940.0,85939.0,0.03134]
[1742465009218,0.31924532,85940.0,85939.0,4e-05]
[1742465009619,0.31924532,85940.0,85929.0,0.0319]
[1742465009620,0.58648076,85940.0,85919.0,0.3608]
[1742465009923,0.5142571,85932.0,85921.0,0.064]
[1742465010123,0.64694903,85932.0,85931.0,0.00017445]
[1742465010319,0.6893971,85932.0,85931.0,0.00017445]
[1742465010520,0.71004218,85932.0,85931.0,0.00017445]
[1742465010730,0.77034218,85932.0,85931.0,0.00017445]
[1742465011426,0.2163665,85925.0,85924.0,4e-05]
[1742465011628,0.33940955,85925.0,85924.0,4e-05]
[1742465012020,0.33640955,85925.0,85924.0,4e-05]
[1742465012221,0.32910955,85925.0,85924.0,4e-05]
[1742465012426,0.39741044,85925.0,85924.0,4e-05]
[1742465012620,0.39741044,85925.0,85924.0,0.00104]
[1742465013023,0.33451044,85925.0,85924.0,0.00104]
[1742465013329,0.32921044,85925.0,85924.0,0.00104]
[1742465013537,0.39741044,85925.0,85924.0,0.00104]
[1742465013727,0.33451044,85925.0,85924.0,0.00104]
[1742465013921,0.39741044,85925.0,85924.0,0.00104]
[1742465014123,0.33451044,85925.0,85924.0,0.00104]
[1742465014332,0.39744888,85925.0,85924.0,0.00304]
[1742465014528,0.33444888,85925.0,85924.0,0.00304]
[1742465014724,0.39744888,85925.0,85924.0,0.00304]
[1742465014924,0.3504634,85925.0,85924.0,0.00304]
[1742465015927,0.33444888,85925.0,85924.0,0.00304]
[1742465016322,0.33444878,85925.0,85924.0,0.00304]
[1742465016737,0.33454878,85925.0,85924.0,0.1194079]
[1742465017234,0.12366228,85925.0,85924.0,0.1194079]
[1742465017430,0.00994228,85925.0,85924.0,0.1194079]
[1742465018028,0.00994228,85925.0,85924.0,1.6194079]
[1742465018536,0.0314,85939.0,85937.0,0.1163503]
[1742465018733,0.2477483,85939.0,85938.0,0.2107489]
[1742465019033,0.2985883,85939.0,85938.0,0.2107489]
[1742465019232,0.3613883,85939.0,85938.0,0.2107489]
[1742465019631,0.2671883,85939.0,85938.0,0.2107489]
[1742465020033,0.2299483,85939.0,85938.0,0.2107489]
[1742465020332,0.2671483,85939.0,85938.0,0.2107489]
[1742465020527,0.3299483,85939.0,85938.0,0.2107489]
[1742465020928,0.00017445,85944.0,85941.0,0.0581718]
[1742465021126,0.00017445,85944.0,85943.0,0.4771422]
[1742465021330,0.26191525,85944.0,85943.0,0.4771422]
[1742465021532,0.26721525,85944.0,85943.0,0.5400422]
[1742465021732,0.33011525,85944.0,85943.0,0.5400422]
[1742465021932,0.26191525,85944.0,85943.0,0.4237]
[1742465022137,0.33011525,85944.0,85943.0,0.4237]
[1742465023045,0.34094546,85944.0,85943.0,0.4237]
[1742465023433,0.27804546,85944.0,85943.0,0.5400422]
[1742465023633,0.34094546,85944.0,85943.0,0.5400422]
[1742465023934,0.27804546,85944.0,85943.0,0.5400422]
[1742465024329,0.21651525,85944.0,85943.0,0.5400422]
[1742465024540,0.33023525,85944.0,85943.0,0.5400422]
[1742465025231,0.26743525,85944.0,85943.0,0.5400422]
[1742465025440,0.33023525,85944.0,85943.0,0.4237]
[1742465025639,0.36283525,85944.0,85943.0,0.4237]
[1742465026235,0.36283525,85944.0,85943.0,0.5400422]
[1742465026440,0.37366016,85944.0,85943.0,0.5400422]
[1742465026639,0.37366016,85944.0,85943.0,0.4237]
[1742465028348,0.37369771,85944.0,85943.0,0.4237]
[1742465028938,0.37369505,85944.0,85943.0,0.4237]
[1742465030542,0.38342153,85944.0,85943.0,0.4237]
[1742465030945,0.38342153,85944.0,85943.0,0.0629]
[1742465031144,0.1163435,85942.0,85941.0,4e-05]
[1742465031349,0.23692978,85942.0,85941.0,4e-05]
[1742465031742,0.23212978,85942.0,85941.0,4e-05]
[1742465031959,0.1163503,85937.0,85936.0,0.0332]
[1742465032147,0.35077658,85937.0,85936.0,0.0332]
[1742465032745,0.41467658,85937.0,85936.0,0.0332]
[1742465033151,0.35187658,85937.0,85936.0,0.1495517]
[1742465033339,0.31467658,85937.0,85936.0,0.1495517]
[1742465033547,0.41467658,85937.0,85936.0,0.1495517]
[1742465033949,0.41467658,85937.0,85936.0,0.1807517]
[1742465034145,0.40496513,85937.0,85936.0,0.1807517]
[1742465034346,0.3301903,85937.0,85936.0,0.1807517]
[1742465034741,0.2619903,85937.0,85936.0,0.0644]
[1742465034946,0.3937903,85937.0,85936.0,0.0644]
[1742465035147,0.36849521,85937.0,85936.0,0.0644]
[1742465035353,0.44755878,85937.0,85936.0,0.0644]
[1742465036945,0.45921755,85937.0,85936.0,0.0644]
[1742465037454,0.44755878,85937.0,85936.0,0.0644]
[1742465038049,0.44755878,85937.0,85936.0,0.0332]
[1742465038250,0.44755878,85937.0,85936.0,0.0656]
[1742465038450,0.43669521,85937.0,85936.0,0.0656]
[1742465039150,0.34069521,85937.0,85936.0,0.1819517]
[1742465039351,0.00960491,85937.0,85936.0,0.1819517]
[1742465039554,0.12595521,85937.0,85936.0,0.1819517]
[1742465039958,0.22595521,85937.0,85936.0,0.1819517]
[1742465042555,0.25665521,85937.0,85936.0,0.1819517]
[1742465044056,0.1788503,85937.0,85936.0,0.1819517]
[1742465044259,0.2470503,85937.0,85936.0,0.0656]
[1742465044456,0.2470503,85937.0,85936.0,0.0332]
[1742465044660,0.1163706,85922.0,85919.0,0.11444]
[1742465044863,0.116372,85921.0,85920.0,0.0631]
[1742465045059,0.177672,85921.0,85920.0,0.0631]
[1742465045261,0.177672,85921.0,85920.0,0.06314]
[1742465045760,0.177672,85921.0,85920.0,0.1795133]
[1742465045960,0.177672,85921.0,85920.0,0.06314]
[1742465046370,0.174672,85921.0,85920.0,0.06314]
[1742465046966,0.174672,85921.0,85920.0,0.06514]
[1742465047168,0.174672,85921.0,85920.0,0.06814]
[1742465047568,0.274672,85921.0,85920.0,0.06814]
[1742465048274,0.274672,85921.0,85920.0,0.0681]
[1742465048976,0.206472,85921.0,85920.0,0.0356]
[1742465049177,0.274672,85921.0,85920.0,0.0356]
[1742465049972,0.274672,85921.0,85920.0,0.0687]
[1742465050372,0.306872,85921.0,85920.0,0.0687]
[1742465051375,0.306872,85921.0,85920.0,0.0356]
[1742465052775,0.306872,85921.0,85920.0,0.005]
[1742465054678,0.667672,85921.0,85920.0,0.005]
[1742465055979,0.0581893,85917.0,85914.0,0.0322]
[1742465056171,0.1163801,85915.0,85914.0,0.0322]
[1742465056675,0.1794801,85915.0,85914.0,0.0322]
[1742465056871,0.19143765,85915.0,85914.0,0.0322]
[1742465057073,0.1163828,85913.0,85912.0,0.00017456]
[1742465057481,0.1123828,85913.0,85912.0,0.00017456]
[1742465057682,0.1735828,85913.0,85912.0,0.00017456]
[1742465058390,0.1695828,85913.0,85912.0,0.00017456]
[1742465058597,0.2695828,85913.0,85912.0,0.00017456]
[1742465059287,0.2695828,85913.0,85912.0,0.00917456]
[1742465061384,0.0581927,85911.0,85885.0,0.0582098]
[1742465061579,0.1163896,85908.0,85905.0,0.0304]
[1742465061888,0.3306296,85908.0,85905.0,0.0304]
[1742465062589,0.3306296,85908.0,85907.0,0.3648]
[1742465063087,0.3306296,85908.0,85907.0,0.3678]
[1742465063680,0.33934185,85908.0,85907.0,0.3678]
[1742465064488,0.33934185,85908.0,85907.0,0.3668]
[1742465065385,0.33934185,85908.0,85907.0,0.006]
[1742465067387,0.1163923,85906.0,85905.0,4e-05]
[1742465067582,0.4771923,85906.0,85905.0,4e-05]
[1742465067778,0.5771923,85906.0,85905.0,4e-05]
[1742465067979,0.6393923,85906.0,85905.0,4e-05]
[1742465068678,0.1163977,85902.0,85901.0,0.0308]
[1742465069081,0.2163977,85902.0,85901.0,0.0308]
[1742465069575,0.2755977,85902.0,85901.0,0.0308]
[1742465070383,0.3273577,85902.0,85901.0,0.0338]
[1742465070580,0.3899577,85902.0,85901.0,0.0338]
[1742465073679,0.3899577,85902.0,85901.0,0.0655]
[1742465074587,0.2755977,85902.0,85901.0,0.0655]
[1742465074783,0.3901177,85902.0,85901.0,0.0655]
[1742465075687,0.3219177,85902.0,85901.0,0.0655]
[1742465076893,0.3901177,85902.0,85901.0,0.0338]
[1742465077302,0.3219177,85902.0,85901.0,0.0338]
[1742465077488,0.3901177,85902.0,85901.0,0.0338]
[1742465077688,0.3219177,85902.0,85901.0,0.0338]
[1742465078794,0.3901177,85902.0,85901.0,0.0338]
[1742465079000,0.3219177,85902.0,85901.0,0.0338]
[1742465080194,0.39971882,85902.0,85901.0,0.0338]
[1742465080389,0.33151882,85902.0,85901.0,0.0338]
[1742465080591,0.34242345,85902.0,85901.0,0.0338]
[1742465080900,0.1164004,85900.0,85899.0,0.00021456]
[1742465081197,0.1164126,85891.0,85890.0,4e-05]
[1742465081402,0.2496508,85891.0,85882.0,0.10545362]
[1742465081598,0.1164235,85883.0,85882.0,0.094]
[1742465081803,0.16872888,85883.0,85882.0,0.094]
[1742465082188,0.23692888,85883.0,85882.0,0.094]
[1742465082391,0.26732888,85883.0,85882.0,0.094]
[1742465082591,0.23242888,85883.0,85882.0,0.094]
[1742465083287,0.30057704,85883.0,85882.0,0.094]
[1742465083486,0.27057704,85883.0,85882.0,0.094]
[1742465083694,0.38813704,85883.0,85882.0,0.094]
[1742465083896,0.28623704,85883.0,85882.0,0.094]
[1742465084095,0.25443704,85883.0,85882.0,0.094]
[1742465084598,0.24358462,85883.0,85882.0,0.094]
[1742465085403,0.2339835,85883.0,85882.0,0.094]
[1742465086491,0.3339835,85883.0,85882.0,0.094]
[1742465086691,0.2657835,85883.0,85882.0,0.094]
[1742465086900,0.3339835,85883.0,85882.0,0.094]
[1742465087297,0.2657835,85883.0,85882.0,0.094]
[1742465088201,0.3339835,85883.0,85882.0,0.094]
[1742465088506,0.2447835,85883.0,85882.0,0.094]
[1742465088801,0.3339835,85883.0,85882.0,0.094]
[1742465089196,0.3339835,85883.0,85882.0,0.0612]
[1742465089399,0.2657835,85883.0,85882.0,0.0612]
[1742465089691,0.3339835,85883.0,85882.0,0.0612]
[1742465090705,0.2657835,85883.0,85882.0,0.0612]
[1742465090903,0.3339835,85883.0,85882.0,0.0612]
[1742465091805,0.2164235,85883.0,85882.0,0.0612]
[1742465092014,0.2722235,85883.0,85882.0,0.1776248]
[1742465092510,0.3340235,85883.0,85882.0,0.0612]
[1742465092895,0.3339435,85883.0,85882.0,0.0612]
[1742465093503,0.28172773,85883.0,85882.0,0.0612]
[1742465094102,0.28172773,85883.0,85882.0,0.1776248]
[1742465094303,0.28172773,85883.0,85882.0,0.0612]
[1742465094505,0.2721435,85883.0,85882.0,0.0612]
[1742465094812,0.2721435,85883.0,85882.0,0.1776248]
[1742465095112,0.2721435,85883.0,85882.0,0.0612]
[1742465095498,0.28164685,85883.0,85882.0,0.0612]
[1742465095808,0.28164685,85883.0,85882.0,0.1776248]
[1742465096413,0.34344685,85883.0,85882.0,0.1776248]
[1742465096798,0.35430503,85883.0,85882.0,0.1776248]
[1742465097416,0.35440565,85883.0,85882.0,0.1776248]
[1742465099108,0.28620565,85883.0,85882.0,0.0612]
[1742465099307,0.29260565,85883.0,85882.0,0.0612]
[1742465099512,0.29260565,85883.0,85882.0,0.1776248]
[1742465099914,0.35440565,85883.0,85882.0,0.1776248]
[1742465100211,0.28620565,85883.0,85882.0,0.0612]
[1742465100600,0.35440565,85883.0,85882.0,0.0612]
[1742465101115,0.41530565,85883.0,85882.0,0.0612]
[1742465101614,0.34714523,85883.0,85882.0,0.0612]
[1742465101816,0.41534523,85883.0,85882.0,0.1776248]
[1742465102017,0.35354523,85883.0,85882.0,0.14121873]
[1742465102218,0.35354523,85883.0,85882.0,0.02479393]
[1742465102515,0.35354523,85883.0,85882.0,0.14121873]
[1742465102516,0.04149761,85883.0,85882.0,0.14121873]
[1742465102714,0.01089761,85883.0,85882.0,0.14121873]
[1742465102905,0.22732111,85883.0,85882.0,0.14121873]
[1742465103104,0.15912111,85883.0,85882.0,1.64121873]
[1742465103304,0.22732111,85883.0,85882.0,1.64121873]
[1742465103715,0.22732111,85883.0,85882.0,0.14121873]
[1742465104311,0.16562111,85883.0,85882.0,0.14121873]
[1742465104621,0.12732111,85883.0,85882.0,0.14121873]
[1742465104809,0.16562111,85883.0,85882.0,0.14121873]
[1742465105210,0.16562111,85883.0,85882.0,0.17301873]
[1742465105417,0.22732111,85883.0,85882.0,0.17301873]
[1742465105720,0.2164235,85883.0,85882.0,0.17301873]
[1742465105924,0.1547235,85883.0,85882.0,0.17301873]
[1742465106108,0.2164235,85883.0,85882.0,0.17301873]
[1742465106722,0.1547235,85883.0,85882.0,0.17301873]
[1742465106923,0.2164235,85883.0,85882.0,0.17301873]
[1742465108322,0.1547235,85883.0,85882.0,0.17301873]
[1742465108623,0.0582081,85889.0,85888.0,0.0582077]
[1742465108820,0.1746345,85885.0,85884.0,0.1164213]
[1742465109023,0.3925145,85885.0,85884.0,0.1164213]
[1742465109228,0.4244145,85885.0,85884.0,0.1164213]
[1742465109927,0.4544145,85885.0,85884.0,0.1164213]
[1742465110327,0.3927145,85885.0,85884.0,0.1164213]
[1742465110726,0.276291,85885.0,85884.0,0.1164213]
[1742465111032,0.088211,85885.0,85884.0,0.1164213]
[1742465111328,0.088211,85885.0,85884.0,0.1811213]
[1742465112030,0.088211,85885.0,85884.0,0.1482213]
[1742465112424,0.188211,85885.0,85884.0,0.1482213]
[1742465112732,0.120811,85885.0,85884.0,0.1482213]
[1742465113316,0.088211,85885.0,85884.0,0.1482213]
[1742465113521,0.03,85885.0,85884.0,0.1482213]
[1742465113716,0.30225852,85891.0,85888.0,0.1746217]
[1742465113923,0.033,85890.0,85889.0,0.1784153]
[1742465114323,0.24405172,85891.0,85890.0,0.116414]
[1742465114518,0.24405172,85891.0,85890.0,0.508414]
[1742465114723,0.46046432,85891.0,85890.0,0.508414]
[1742465114924,0.36046432,85891.0,85890.0,0.508414]
[1742465115131,0.24405172,85891.0,85890.0,0.508414]
[1742465115323,0.36046432,85891.0,85890.0,0.508414]
[1742465115719,0.46146432,85891.0,85890.0,0.508414]
[1742465116523,0.03157456,85891.0,85890.0,0.508414]
[1742465116930,0.03257456,85891.0,85890.0,0.508414]
[1742465117418,0.15098716,85891.0,85890.0,0.508414]
[1742465117619,0.25098716,85891.0,85890.0,0.508414]
[1742465118030,0.15098716,85891.0,85890.0,0.477214]
[1742465118235,0.18308716,85891.0,85890.0,0.477214]
[1742465119028,0.18308716,85891.0,85890.0,0.3608]
[1742465120338,0.116414,85890.0,85889.0,4e-05]
[1742465120530,0.1164184,85887.0,85882.0,0.0582118]
[1742465120730,0.0582078,85889.0,85885.0,0.1164207]
[1742465120731,0.0325,85886.0,85885.0,0.1164207]
[1742465120933,0.15046,85886.0,85885.0,0.1164207]
[1742465121836,0.18376,85886.0,85885.0,0.1164207]
[1742465122025,0.3001794,85886.0,85885.0,0.1164207]
[1742465122221,0.18376,85886.0,85884.0,4e-05]
[1742465122626,0.1164207,85885.0,85884.0,4e-05]
[1742465122839,0.1823207,85885.0,85884.0,4e-05]
[1742465123032,0.2823207,85885.0,85884.0,4e-05]
[1742465123334,0.2014207,85885.0,85884.0,4e-05]
[1742465123833,0.1164248,85883.0,85881.0,0.3608]
[1742465124026,0.2136248,85882.0,85881.0,0.4772253]
[1742465124227,0.2519248,85882.0,85881.0,0.4772253]
[1742465126155,0.2519248,85882.0,85881.0,0.1164253]
[1742465127229,0.3136248,85882.0,85881.0,0.1164253]
[1742465128545,0.1164262,85881.0,85880.0,4e-05]